bitfinex-derivatives/quotes_BTCF0:USTF0_20240925
["timestamp","ask_amount","ask_price","bid_price","bid_amount"]
[1727259080635,0.014,63588.0,63587.0,0.39796779]
[1727259081527,0.014,63588.0,63587.0,1.46637499]
[1727259081727,0.014,63588.0,63587.0,1.40303854]
[1727259083130,0.014,63588.0,63587.0,2.00303854]
[1727259083435,0.014,63588.0,63587.0,1.90919579]
[1727259083634,0.014,63588.0,63587.0,0.61876779]
[1727259084238,0.092627,63588.0,63587.0,0.68160563]
[1727259084743,0.014,63588.0,63587.0,0.50426384]
[1727259086136,0.014,63588.0,63587.0,0.68298846]
[1727259086137,0.092627,63588.0,63587.0,0.68298846]
[1727259086342,0.092627,63588.0,63587.0,0.62015062]
[1727259087540,0.014,63588.0,63587.0,0.76015062]
[1727259087740,0.014,63588.0,63587.0,0.83877862]
[1727259088043,0.04680068,63593.0,63592.0,0.078622]
[1727259088243,0.14101691,63597.0,63592.0,0.078622]
[1727259088244,0.04680068,63594.0,63593.0,0.078621]
[1727259088740,0.04680068,63594.0,63593.0,0.32195825]
[1727259088948,0.04680068,63594.0,63593.0,0.25912421]
[1727259089538,0.04680068,63594.0,63593.0,0.32842421]
[1727259089734,0.04680068,63595.0,63594.0,0.078619]
[1727259089939,0.04680068,63596.0,63595.0,0.078618]
[1727259090135,0.04680068,63596.0,63595.0,0.29672625]
[1727259090447,0.04680068,63596.0,63595.0,0.12574102]
[1727259090646,0.04680068,63596.0,63595.0,0.29546008]
[1727259091143,0.04680068,63596.0,63595.0,0.29646008]
[1727259091144,0.05280068,63596.0,63595.0,0.29646008]
[1727259091338,0.05280068,63596.0,63595.0,0.29746008]
[1727259091642,0.006,63596.0,63595.0,0.25033706]
[1727259097349,0.006,63596.0,63595.0,0.32895506]
[1727259097739,0.006,63596.0,63595.0,0.50097751]
[1727259097939,0.006,63596.0,63595.0,0.42243475]
[1727259098645,0.006,63596.0,63595.0,0.50087766]
[1727259098845,0.006,63596.0,63595.0,0.42237652]
[1727259103656,0.006,63596.0,63595.0,0.42223675]
[1727259103951,0.006,63596.0,63595.0,0.78303675]
[1727259104851,0.006,63596.0,63595.0,0.70441875]
[1727259106455,0.03148533,63596.0,63595.0,0.61113706]
[1727259106753,0.006,63596.0,63595.0,0.61113706]
[1727259106942,0.05571561,63596.0,63595.0,0.61113706]
[1727259107147,0.006,63596.0,63595.0,0.61113706]
[1727259107354,0.03148533,63596.0,63595.0,0.61113706]
[1727259107657,0.08120094,63596.0,63595.0,0.61113706]
[1727259109360,0.03148533,63596.0,63595.0,0.61113706]
[1727259110553,0.03148533,63596.0,63595.0,0.68975506]
[1727259112055,0.03148533,63596.0,63595.0,0.61113706]
[1727259112654,0.03148533,63596.0,63595.0,0.68975506]
[1727259113552,0.006,63596.0,63595.0,1.85480354]
[1727259113753,0.006,63596.0,63595.0,1.25480354]
[1727259114457,0.006,63596.0,63595.0,1.35480354]
[1727259115056,0.006,63596.0,63595.0,0.88308354]
[1727259115258,0.006,63596.0,63595.0,1.35480354]
[1727259115455,0.006,63596.0,63595.0,1.44907642]
[1727259115655,0.006,63596.0,63595.0,0.97735642]
[1727259117665,0.006,63596.0,63595.0,0.88308354]
[1727259117965,0.006,63596.0,63595.0,0.88316122]
[1727259118167,0.04689325,63607.0,63597.0,0.078616]
[1727259118466,0.01374269,63608.0,63606.0,0.3608]
[1727259118663,0.078602,63609.0,63607.0,0.078602]
[1727259118964,0.078602,63609.0,63608.0,0.1]
[1727259119163,0.078602,63609.0,63608.0,0.178602]
[1727259119469,0.078602,63609.0,63608.0,0.35110542]
[1727259120571,0.078602,63609.0,63608.0,0.35210542]
[1727259120761,0.078602,63609.0,63608.0,0.35310542]
[1727259121358,0.439402,63609.0,63608.0,0.41593428]
[1727259121670,0.21327024,63609.0,63608.0,0.35310542]
[1727259122258,0.3539461,63609.0,63608.0,0.35310542]
[1727259123764,0.21327024,63609.0,63608.0,0.35310542]
[1727259126168,0.29187124,63609.0,63608.0,0.35310542]
[1727259127763,0.22587581,63609.0,63608.0,0.35310542]
[1727259128570,0.09251808,63609.0,63608.0,0.35310542]
[1727259129962,0.17111908,63609.0,63608.0,0.35310542]
[1727259130157,0.09251808,63609.0,63608.0,0.35310542]
[1727259131070,0.13940134,63609.0,63608.0,0.41592484]
[1727259131272,0.13940134,63609.0,63608.0,0.35310542]
[1727259131574,0.13940134,63609.0,63608.0,0.41592484]
[1727259132065,0.09251808,63609.0,63608.0,0.35310542]
[1727259133372,0.13939917,63609.0,63608.0,0.35310542]
[1727259134462,0.09251808,63609.0,63608.0,0.40022464]
[1727259134667,0.1394032,63609.0,63608.0,0.40022481]
[1727259134861,0.09251808,63609.0,63608.0,0.35310542]
[1727259135171,0.09251808,63609.0,63608.0,0.40022487]
[1727259135678,0.09251808,63609.0,63608.0,0.35310542]
[1727259135679,0.13940079,63609.0,63608.0,0.35310542]
[1727259135974,0.09251808,63609.0,63608.0,0.35310542]
[1727259136386,0.09251808,63609.0,63608.0,0.41592484]
[1727259136568,0.11800153,63609.0,63608.0,0.27446036]
[1727259137074,0.25865164,63609.0,63608.0,0.35306236]
[1727259137269,0.43034151,63609.0,63608.0,0.35306236]
[1727259137777,0.2896914,63609.0,63608.0,0.35306236]
[1727259139366,0.43034151,63609.0,63608.0,0.35306236]
[1727259143174,0.50894251,63609.0,63608.0,0.35306236]
[1727259143370,0.43034151,63609.0,63608.0,0.35306236]
[1727259143672,0.09251808,63609.0,63608.0,0.35306236]
[1727259146188,0.09251808,63609.0,63608.0,0.25306236]
[1727259146388,0.09251808,63609.0,63608.0,0.35306236]
[1727259149284,0.01391708,63609.0,63608.0,0.35306236]
[1727259149492,0.06250596,63611.0,63608.0,0.35306236]
[1727259149493,0.14110496,63611.0,63610.0,0.0786]
[1727259149785,0.06250596,63611.0,63610.0,0.14147581]
[1727259149989,0.439396,63613.0,63610.0,0.17332464]
[1727259150286,0.439396,63613.0,63608.0,0.18054829]
[1727259150287,0.45335112,63613.0,63612.0,0.1]
[1727259150591,0.45335112,63613.0,63612.0,0.35192164]
[1727259150592,0.37475512,63613.0,63612.0,0.35192164]
[1727259152278,0.37475512,63613.0,63612.0,0.35292164]
[1727259152680,0.37475512,63613.0,63612.0,0.35392164]
[1727259153180,0.42163822,63613.0,63612.0,0.35392164]
[1727259154193,0.37475512,63613.0,63612.0,0.35392164]
[1727259154393,0.37475512,63613.0,63612.0,0.41678342]
[1727259154888,0.45335112,63613.0,63612.0,0.41678342]
[1727259155281,0.45335112,63613.0,63612.0,0.41678058]
[1727259155484,0.45335112,63613.0,63612.0,0.31678058]
[1727259155674,0.45335112,63613.0,63612.0,0.25392164]
[1727259155875,0.51585708,63613.0,63612.0,0.25392164]
[1727259156684,0.09255112,63613.0,63612.0,0.25392164]
[1727259156984,0.01395512,63613.0,63612.0,0.31678058]
[1727259157178,0.04688013,63614.0,63613.0,0.078596]
[1727259157394,0.04688013,63614.0,63613.0,0.178596]
[1727259157601,0.04688013,63614.0,63613.0,0.35235322]
[1727259158077,0.37464797,63615.0,63614.0,0.078595]
[1727259158078,0.0607281,63615.0,63614.0,0.078595]
[1727259158285,0.01384797,63615.0,63614.0,0.078595]
[1727259158482,0.04688013,63618.0,63614.0,0.17521003]
[1727259158682,0.20359793,63622.0,63621.0,0.078586]
[1727259158878,0.21368815,63622.0,63621.0,0.078586]
[1727259159289,0.29340201,63622.0,63621.0,0.078586]
[1727259159591,0.35229787,63622.0,63621.0,0.078586]
[1727259159985,0.35229787,63622.0,63621.0,0.079586]
[1727259161187,0.35229787,63622.0,63621.0,0.080586]
[1727259161386,0.22733841,63622.0,63621.0,0.080586]
[1727259161592,0.14875241,63622.0,63621.0,0.080586]
[1727259161891,0.14872036,63622.0,63621.0,0.080586]
[1727259162393,0.08985655,63622.0,63621.0,0.080586]
[1727259162688,0.12292474,63622.0,63621.0,0.080586]
[1727259162985,0.08985655,63622.0,63621.0,0.080586]
[1727259163288,0.01365026,63622.0,63621.0,0.080586]
[1727259163489,0.10926338,63622.0,63621.0,0.080586]
[1727259163793,0.18546967,63622.0,63621.0,0.080586]
[1727259164189,0.07620629,63622.0,63621.0,0.080586]
[1727259164394,0.10926338,63622.0,63621.0,0.080586]
[1727259164598,0.18546967,63622.0,63621.0,0.24862933]
[1727259165287,0.15998989,63622.0,63621.0,0.24862933]
[1727259165485,0.07620629,63622.0,63621.0,0.95401533]
[1727259166103,0.02547637,63622.0,63621.0,1.31481533]
[1727259166394,0.09361937,63622.0,63621.0,1.31481533]
[1727259166598,0.078573,63632.0,63631.0,0.078574]
[1727259166779,0.078573,63632.0,63631.0,0.178574]
[1727259166984,0.078574,63631.0,63630.0,0.6276]
[1727259167188,0.078574,63631.0,63630.0,0.6268]
[1727259167704,0.078574,63631.0,63630.0,0.705375]
[1727259168788,0.078574,63631.0,63630.0,0.706375]
[1727259169491,0.078574,63631.0,63630.0,0.707375]
[1727259169680,0.078574,63631.0,63630.0,0.87362601]
[1727259169889,0.44524271,63634.0,63633.0,0.078571]
[1727259170088,0.44380271,63634.0,63633.0,0.078571]
[1727259170494,0.42321207,63639.0,63633.0,0.6268]
[1727259170805,0.439364,63639.0,63638.0,0.078565]
[1727259170987,0.45316319,63639.0,63638.0,0.078565]
[1727259171292,0.45316319,63639.0,63638.0,0.24636531]
[1727259172192,0.55316319,63639.0,63638.0,0.24636531]
[1727259172588,0.55316319,63639.0,63638.0,0.24736531]
[1727259173201,0.55316319,63639.0,63638.0,0.24836531]
[1727259173693,0.7568239,63639.0,63638.0,0.04396111]
[1727259174000,0.7568239,63639.0,63638.0,0.002]
[1727259174203,0.7568239,63639.0,63638.0,0.080565]
[1727259174402,0.6568239,63639.0,63638.0,0.080565]
[1727259174592,0.20364804,63639.0,63638.0,0.35633502]
[1727259174904,0.23246337,63639.0,63638.0,0.43490002]
[1727259175092,0.20364804,63639.0,63638.0,0.43490002]
[1727259175788,0.21682923,63639.0,63638.0,0.43390002]
[1727259175990,0.20364804,63639.0,63638.0,0.35633502]
[1727259176189,0.16567781,63639.0,63638.0,0.35633502]
[1727259176394,0.02547436,63639.0,63638.0,0.35633502]
[1727259176600,0.20364804,63639.0,63638.0,0.35533502]
[1727259176897,0.20364804,63639.0,63638.0,0.35633502]
[1727259177102,0.34385149,63639.0,63638.0,0.35633502]
[1727259177409,0.20195621,63639.0,63638.0,0.35633502]
[1727259177790,0.33939997,63639.0,63638.0,0.35633502]
[1727259178405,0.19919652,63639.0,63638.0,0.35633502]
[1727259179407,0.13325507,63639.0,63638.0,0.35633502]
[1727259179599,0.14020345,63642.0,63641.0,0.078561]
[1727259179901,0.14020345,63646.0,63645.0,0.078556]
[1727259180094,0.06457567,63646.0,63645.0,0.7268]
[1727259180288,0.14009288,63647.0,63645.0,1.25140294]
[1727259180489,0.15583605,63651.0,63650.0,0.07855]
[1727259180697,0.36224,63656.0,63655.0,0.078544]
[1727259181001,0.15583605,63662.0,63655.0,0.078544]
[1727259181002,0.078537,63661.0,63655.0,0.2789463]
[1727259181196,0.078537,63661.0,63658.0,0.17854]
[1727259181395,0.078538,63660.0,63659.0,0.078539]
[1727259181594,0.078538,63660.0,63659.0,0.3574853]
[1727259181889,0.3608,63662.0,63661.0,0.078537]
[1727259182099,0.0015764,63663.0,63662.0,0.078535]
[1727259182293,0.0037,63672.0,63662.0,0.078535]
[1727259182294,0.0037,63672.0,63662.0,0.7668]
[1727259182494,0.3608,63675.0,63668.0,0.14]
[1727259182694,0.3608,63675.0,63674.0,0.14]
[1727259183094,0.3608,63675.0,63674.0,0.31989296]
[1727259183292,0.3608,63675.0,63674.0,0.39841396]
[1727259184303,0.01352699,63681.0,63674.0,0.79105296]
[1727259184511,0.01352699,63681.0,63680.0,0.218513]
[1727259184707,0.01352699,63681.0,63680.0,0.845313]
[1727259184907,0.078501,63690.0,63680.0,2.01480565]
[1727259185101,0.14,63693.0,63681.0,0.5008]
[1727259185408,0.3608,63682.0,63681.0,0.14]
[1727259185703,0.442996,63694.0,63687.0,0.078504]
[1727259185896,0.442996,63694.0,63687.0,0.218504]
[1727259185897,0.439296,63694.0,63687.0,0.218504]
[1727259186099,0.439296,63694.0,63688.0,0.16535063]
[1727259186406,0.45311136,63694.0,63693.0,0.14]
[1727259186707,0.45311136,63694.0,63693.0,0.7668]
[1727259187001,0.3608,63694.0,63693.0,0.93215063]
[1727259187206,0.3608,63694.0,63693.0,1.01064763]
[1727259188398,0.07849,63699.0,63694.0,0.078495]
[1727259188712,0.07849,63699.0,63698.0,0.14]
[1727259188902,0.07849,63699.0,63698.0,0.7668]
[1727259189100,0.07849,63699.0,63698.0,0.93245991]
[1727259189406,0.3608,63700.0,63698.0,0.93245991]
[1727259189407,0.3608,63700.0,63699.0,0.07849]
[1727259189711,0.078484,63704.0,63699.0,0.0702]
[1727259189901,0.078484,63704.0,63703.0,0.14]
[1727259190096,0.3608,63707.0,63703.0,0.14]
[1727259190300,0.3608,63707.0,63703.0,0.30686598]
[1727259190502,0.078484,63704.0,63703.0,0.16686598]
[1727259190808,0.078488,63701.0,63700.0,0.16686598]
[1727259191110,0.078488,63701.0,63699.0,0.141]
[1727259191111,0.439288,63701.0,63699.0,0.141]
[1727259191300,0.078489,63700.0,63699.0,0.141]
[1727259191495,0.078489,63700.0,63699.0,0.001]
[1727259191809,0.078489,63700.0,63699.0,0.17630599]
[1727259192106,0.078489,63700.0,63699.0,0.31630599]
[1727259192306,0.078489,63700.0,63699.0,0.31530599]
[1727259192814,0.078487,63702.0,63701.0,0.078486]
[1727259193004,0.3608,63707.0,63699.0,0.31630599]
[1727259193005,0.078488,63701.0,63699.0,0.31630599]
[1727259193202,0.078489,63700.0,63699.0,0.141]
[1727259193403,0.3608,63707.0,63700.0,0.16982122]
[1727259193626,0.43928,63707.0,63706.0,0.14]
[1727259194002,0.43928,63707.0,63706.0,0.31674139]
[1727259194903,0.43928,63707.0,63706.0,0.17674139]
[1727259195214,0.078485,63703.0,63702.0,0.14]
[1727259195518,0.078485,63703.0,63702.0,0.3831556]
[1727259196207,0.43928,63707.0,63706.0,0.079481]
[1727259196412,0.43928,63707.0,63706.0,0.219481]
[1727259196605,0.43928,63707.0,63706.0,0.38881035]
[1727259196799,0.63029544,63707.0,63706.0,0.01087069]
[1727259197002,0.63029544,63707.0,63706.0,0.14435273]
[1727259197308,0.26949544,63707.0,63706.0,0.22283373]
[1727259197517,0.26949544,63707.0,63706.0,0.14535273]
[1727259197817,0.26949544,63707.0,63699.0,0.11349434]
[1727259198013,0.15440997,63701.0,63698.0,0.6276]
[1727259198207,0.07849,63699.0,63698.0,0.6268]
[1727259198510,0.26950544,63699.0,63698.0,0.80593458]
[1727259198710,0.26950544,63699.0,63698.0,0.88442558]
[1727259198911,0.26950544,63699.0,63698.0,1.02442558]
[1727259199411,0.26950544,63699.0,63698.0,0.88542558]
[1727259199614,0.26950544,63699.0,63698.0,0.80693458]
[1727259200616,0.26950544,63699.0,63698.0,0.80793458]
[1727259203117,0.34799544,63699.0,63698.0,0.80793458]
[1727259203814,0.15698,63699.0,63698.0,0.80793458]
[1727259205114,0.07849,63699.0,63698.0,0.80793458]
[1727259206429,0.15698,63699.0,63698.0,0.80793458]
[1727259207319,0.07849,63699.0,63698.0,0.80793458]
[1727259207706,0.15698,63699.0,63698.0,0.80793458]
[1727259208214,0.23547,63699.0,63698.0,0.80793458]
[1727259208518,0.31289222,63699.0,63698.0,0.6288]
[1727259208707,0.15698,63699.0,63698.0,0.6288]
[1727259209416,0.18243153,63699.0,63698.0,0.6288]
[1727259210310,0.15698,63699.0,63698.0,0.6288]
[1727259210506,0.18243064,63699.0,63698.0,0.6288]
[1727259210707,0.65339021,63699.0,63698.0,0.6288]
[1727259210911,0.15698,63699.0,63698.0,0.6288]
[1727259211117,0.18243067,63699.0,63698.0,0.6288]
[1727259211917,0.39434147,63699.0,63698.0,0.03392169]
[1727259213017,0.0785,63691.0,63690.0,0.05589891]
[1727259213323,0.64241135,63691.0,63690.0,0.51615452]
[1727259213717,0.28161135,63691.0,63690.0,0.51615452]
[1727259213913,0.48461298,63691.0,63690.0,0.51615452]
[1727259214711,0.28161135,63691.0,63690.0,0.51615452]
[1727259215121,0.48468111,63691.0,63690.0,0.51615452]
[1727259215520,0.48972538,63691.0,63690.0,0.51815452]
[1727259215720,0.41122538,63691.0,63690.0,0.51815452]
[1727259215920,0.34556853,63691.0,63690.0,0.51815452]
[1727259216135,0.20811135,63691.0,63690.0,0.51815452]
[1727259216327,0.1424545,63691.0,63690.0,0.51815452]
[1727259216716,0.20811135,63691.0,63690.0,0.51815452]
[1727259217620,0.07065685,63691.0,63690.0,0.51815452]
[1727259217822,0.48873427,63691.0,63690.0,0.51815452]
[1727259218219,0.28560591,63691.0,63690.0,0.51815452]
[1727259218416,0.20710591,63691.0,63690.0,0.51815452]
[1727259218824,0.005,63691.0,63690.0,0.51815452]
[1727259220619,0.0835,63691.0,63690.0,0.51815452]
[1727259220820,0.14600035,63691.0,63690.0,0.51815452]
[1727259221132,0.14600252,63691.0,63690.0,0.51815452]
[1727259221334,0.0835,63691.0,63690.0,0.51815452]
[1727259222325,0.162,63691.0,63690.0,0.46225561]
[1727259222631,0.0835,63691.0,63690.0,0.46225561]
[1727259223636,0.24012544,63691.0,63690.0,0.46225561]
[1727259225033,0.3805,63691.0,63690.0,0.46225561]
[1727259225238,0.47425053,63691.0,63690.0,0.2984]
[1727259225532,0.2405,63691.0,63690.0,0.2984]
[1727259225723,0.3805,63691.0,63690.0,0.2984]
[1727259226423,0.41947727,63691.0,63690.0,0.2984]
[1727259226731,0.34097727,63691.0,63690.0,0.2984]
[1727259226934,0.20101944,63691.0,63690.0,0.2984]
[1727259227417,0.31039506,63691.0,63690.0,0.2984]
[1727259227618,0.35570428,63691.0,63690.0,0.2984]
[1727259227830,0.24632866,63691.0,63690.0,0.2984]
[1727259228223,0.0785,63691.0,63690.0,0.2984]
[1727259228418,0.157,63691.0,63690.0,0.2984]
[1727259228734,0.2355,63691.0,63690.0,0.2984]
[1727259230422,0.157,63691.0,63690.0,0.2984]
[1727259232337,0.0785,63691.0,63690.0,0.2984]
[1727259232834,0.157,63691.0,63690.0,0.2984]
[1727259235129,0.157,63691.0,63690.0,0.34544475]
[1727259235431,0.157,63691.0,63690.0,0.2984]
[1727259235638,0.157,63691.0,63690.0,0.34544475]
[1727259236732,0.157,63691.0,63690.0,0.2984]
[1727259237329,0.157,63691.0,63690.0,0.34544423]
[1727259237643,0.157,63691.0,63690.0,0.2984]
[1727259238943,0.0785,63691.0,63690.0,0.2984]
[1727259239434,0.0785,63691.0,63690.0,0.450101]
[1727259239630,0.0785,63691.0,63690.0,0.69036298]
[1727259240029,0.0785,63691.0,63690.0,0.69036266]
[1727259240233,0.0785,63691.0,63690.0,0.62763445]
[1727259240438,0.078495,63695.0,63694.0,0.078496]
[1727259240637,0.078495,63695.0,63694.0,0.218496]
[1727259240841,0.078495,63695.0,63694.0,0.44635752]
[1727259241044,0.078495,63695.0,63694.0,0.68003086]
[1727259241242,0.078491,63699.0,63698.0,0.07849]
[1727259241539,0.078491,63699.0,63698.0,0.61943976]
[1727259241842,0.078491,63699.0,63698.0,0.66647774]
[1727259242026,0.078491,63699.0,63698.0,0.61943976]
[1727259243443,0.078491,63699.0,63698.0,0.66747317]
[1727259243738,0.078491,63699.0,63698.0,0.62043976]
[1727259243947,0.078491,63699.0,63698.0,0.62143976]
[1727259244127,0.078491,63699.0,63698.0,0.76143976]
[1727259244326,0.013303,63702.0,63698.0,0.68294976]
[1727259244542,0.444418,63709.0,63702.0,0.078486]
[1727259244543,0.078486,63703.0,63702.0,0.078486]
[1727259244748,0.078486,63703.0,63702.0,0.26551649]
[1727259245959,0.078486,63702.0,63701.0,0.04703049]
[1727259246249,0.078487,63701.0,63700.0,0.04703049]
[1727259246448,0.156974,63701.0,63700.0,0.21764868]
[1727259246649,0.156974,63701.0,63700.0,0.04703049]
[1727259246950,0.078489,63700.0,63699.0,0.0744]
[1727259247447,0.078489,63700.0,63699.0,0.24955741]
[1727259248248,0.078489,63700.0,63699.0,0.3907703]
[1727259248652,0.078487,63701.0,63700.0,0.078489]
[1727259248842,0.078487,63701.0,63700.0,0.14121189]
[1727259249043,0.16117427,63701.0,63700.0,0.26125009]
[1727259249255,0.08269427,63701.0,63700.0,0.26125009]
[1727259249645,0.21014182,63701.0,63700.0,0.26025009]
[1727259249946,0.13330421,63701.0,63700.0,0.26125009]
[1727259250147,0.13330421,63701.0,63700.0,0.26225009]
[1727259250338,0.03826584,63701.0,63700.0,0.26225009]
[1727259250544,0.21653259,63703.0,63702.0,0.078486]
[1727259250740,0.13396947,63703.0,63702.0,0.579286]
[1727259251058,0.30584545,63703.0,63702.0,0.76094017]
[1727259251245,0.21245447,63703.0,63702.0,0.76094017]
[1727259251442,0.2400884,63703.0,63702.0,0.54245417]
[1727259251645,0.2400884,63703.0,63700.0,0.002]
[1727259251646,0.078487,63701.0,63700.0,0.002]
[1727259251851,0.21233419,63701.0,63700.0,0.002]
[1727259252154,0.33346576,63701.0,63700.0,0.244175]
[1727259252345,0.21233419,63701.0,63700.0,0.244175]
[1727259252541,0.21233419,63701.0,63700.0,0.242175]
[1727259252542,0.38417551,63701.0,63700.0,0.242175]
[1727259252953,0.38417551,63701.0,63700.0,0.538575]
[1727259253147,0.38417551,63701.0,63700.0,0.539575]
[1727259253351,0.21233419,63701.0,63700.0,0.540575]
[1727259253772,0.21233419,63701.0,63700.0,0.680575]
[1727259254761,0.27314889,63701.0,63700.0,0.680575]
[1727259254957,0.36853355,63701.0,63700.0,0.680575]
[1727259255158,0.13384719,63701.0,63700.0,0.680575]
[1727259255360,0.19466276,63701.0,63700.0,0.680575]
[1727259255554,0.29004742,63701.0,63700.0,0.680575]
[1727259255864,0.29003401,63701.0,63700.0,0.680575]
[1727259256966,0.15618682,63701.0,63700.0,0.680575]
[1727259257170,0.078487,63702.0,63701.0,0.078487]
[1727259257354,0.09204985,63702.0,63701.0,0.078487]
[1727259257663,0.09204985,63702.0,63701.0,0.28911998]
[1727259257866,0.09204985,63702.0,63701.0,0.2421595]
[1727259258066,0.09204985,63702.0,63701.0,0.3821595]
[1727259258252,0.09204985,63702.0,63701.0,0.42911998]
[1727259258663,0.09204985,63702.0,63701.0,0.3821595]
[1727259258873,0.09204985,63702.0,63701.0,0.6795595]
[1727259259561,0.09204985,63702.0,63701.0,0.72751998]
[1727259259964,0.09204985,63702.0,63701.0,1.08831998]
[1727259260164,0.09204985,63702.0,63701.0,1.0413595]
[1727259261570,0.09204985,63702.0,63701.0,0.9628725]
[1727259261954,0.09204985,63702.0,63701.0,1.02559539]
[1727259262155,0.09204985,63702.0,63701.0,0.9628725]
[1727259262678,0.09204985,63702.0,63701.0,1.02559539]
[1727259262968,0.09204985,63702.0,63701.0,0.9628725]
[1727259263161,0.09204985,63702.0,63701.0,1.0413595]
[1727259263361,0.09204985,63702.0,63701.0,1.10408239]
[1727259263657,0.09204985,63702.0,63701.0,1.0413595]
[1727259264068,0.22653886,63702.0,63701.0,1.0413595]
[1727259264766,0.28684809,63702.0,63701.0,1.0413595]
[1727259264968,0.38272568,63702.0,63701.0,1.0413595]
[1727259265567,0.22653886,63702.0,63701.0,1.0413595]
[1727259269457,0.30502586,63702.0,63701.0,0.8228725]
[1727259269770,0.44502586,63702.0,63701.0,0.2984]
[1727259270076,1.73577286,63702.0,63701.0,1e-08]
[1727259270267,1.79614816,63702.0,63701.0,1e-08]
[1727259271773,1.73577286,63702.0,63701.0,1e-08]
[1727259271960,1.60128385,63702.0,63701.0,1e-08]
[1727259272365,0.53032385,63702.0,63701.0,1e-08]
[1727259272574,1.60128385,63702.0,63701.0,1e-08]
[1727259272968,0.86128385,63702.0,63701.0,1e-08]
[1727259273174,0.39032385,63702.0,63701.0,1e-08]
[1727259274967,0.75112385,63702.0,63701.0,1e-08]
[1727259275872,0.67263685,63702.0,63701.0,1e-08]
[1727259276062,0.67263685,63702.0,63701.0,0.04698321]
[1727259276063,0.09204985,63702.0,63701.0,0.04698321]
[1727259276265,0.15461553,63702.0,63701.0,0.04702907]
[1727259276473,0.09204885,63702.0,63701.0,1e-08]
[1727259279176,0.17053485,63702.0,63701.0,1e-08]
[1727259279373,0.37310053,63702.0,63701.0,1e-08]
[1727259279579,0.45158653,63702.0,63701.0,1e-08]
[1727259279776,0.45562085,63702.0,63701.0,1e-08]
[1727259279982,0.53385858,63702.0,63701.0,1e-08]
[1727259281079,0.45537258,63702.0,63701.0,1e-08]
[1727259281276,1.13385858,63702.0,63701.0,1e-08]
[1727259281485,1.52658085,63702.0,63701.0,1e-08]
[1727259282081,3.02658085,63702.0,63701.0,1e-08]
[1727259282383,3.12046612,63702.0,63701.0,1e-08]
[1727259282569,3.12046612,63702.0,63687.0,0.04702717]
[1727259282570,0.078502,63689.0,63687.0,0.04702717]
[1727259283177,0.157006,63688.0,63687.0,0.04702717]
[1727259283685,0.15701,63687.0,63686.0,0.04702717]
[1727259284588,0.078506,63686.0,63685.0,0.04702717]
[1727259286477,0.078506,63686.0,63682.0,0.42352289]
[1727259286478,0.078507,63685.0,63684.0,0.04702717]
[1727259287072,0.078508,63684.0,63683.0,0.18115699]
[1727259287277,0.078509,63683.0,63682.0,0.3608]
[1727259287476,0.11503319,63683.0,63682.0,0.3608]
[1727259287686,0.11503319,63683.0,63682.0,0.53410357]
[1727259289381,0.11503319,63683.0,63682.0,0.61261457]
[1727259289575,0.11503319,63683.0,63682.0,0.61361457]
[1727259290085,0.11503319,63683.0,63682.0,0.61561457]
[1727259291587,0.0365978,63683.0,63682.0,0.61561457]
[1727259291788,0.10953282,63688.0,63687.0,0.078505]
[1727259291789,0.078504,63688.0,63687.0,0.078505]
[1727259291974,0.078504,63688.0,63687.0,0.218505]
[1727259291975,0.11516365,63688.0,63687.0,0.218505]
[1727259292177,0.11516365,63688.0,63687.0,0.39524917]
[1727259294089,0.22469647,63688.0,63687.0,0.39524917]
[1727259295087,0.11516365,63688.0,63687.0,0.39524917]
[1727259296090,0.11516365,63688.0,63687.0,0.75604917]
[1727259296285,0.11516365,63688.0,63687.0,0.39524917]
[1727259296485,0.11516365,63688.0,63687.0,0.75604917]
[1727259296886,0.11516365,63688.0,63687.0,0.39524917]
[1727259297090,0.11516365,63688.0,63687.0,0.75604917]
[1727259297482,0.22469647,63688.0,63687.0,0.75604917]
[1727259297993,0.22469647,63688.0,63687.0,0.67754417]
[1727259298493,0.11516365,63688.0,63687.0,0.67754417]
[1727259298681,0.1578533,63688.0,63687.0,0.67754417]
[1727259300484,0.28303366,63688.0,63687.0,0.67754417]
[1727259300787,0.1578533,63688.0,63687.0,0.67754417]
[1727259300988,0.078504,63688.0,63687.0,0.74026706]
[1727259302192,0.078504,63688.0,63687.0,0.81877206]
[1727259302590,0.01337449,63689.0,63688.0,0.078503]
[1727259302788,0.078498,63692.0,63691.0,0.078499]
[1727259302996,0.078498,63692.0,63691.0,0.28121247]
[1727259303191,0.078498,63692.0,63691.0,0.38233352]
[1727259303591,0.078495,63695.0,63694.0,0.078495]
[1727259303792,0.078495,63695.0,63694.0,0.64200859]
[1727259303992,0.06256026,63702.0,63694.0,0.56351359]
[1727259304194,0.07849,63699.0,63698.0,0.07849]
[1727259304394,0.07849,63699.0,63698.0,0.21849]
[1727259304701,0.07849,63699.0,63698.0,0.38555057]
[1727259305088,0.15698,63699.0,63698.0,0.16706057]
[1727259305285,0.078492,63697.0,63696.0,0.06271285]
[1727259305693,0.078493,63696.0,63695.0,0.06271285]
[1727259305888,0.07849,63699.0,63694.0,0.50168]
[1727259305889,0.078495,63695.0,63694.0,0.36168]
[1727259306090,0.15699,63695.0,63694.0,0.3608]
[1727259306790,0.15699,63695.0,63694.0,0.3618]
[1727259307998,0.15699,63695.0,63694.0,0.002]
[1727259309909,0.1704063,63695.0,63694.0,0.002]
[1727259312107,0.20725646,63695.0,63694.0,0.002]
[1727259312901,0.20723069,63695.0,63694.0,0.002]
[1727259313299,0.20724934,63695.0,63694.0,0.002]
[1727259313606,0.1704063,63695.0,63694.0,0.002]
[1727259314303,0.20721595,63695.0,63694.0,0.002]
[1727259315611,0.0919113,63695.0,63694.0,0.002]
[1727259316206,0.26402196,63695.0,63694.0,0.002]
[1727259316406,0.39239865,63695.0,63694.0,0.002]
[1727259317206,0.39240796,63695.0,63694.0,0.002]
[1727259317419,0.22028799,63695.0,63694.0,0.002]
[1727259319809,0.29878299,63695.0,63694.0,0.002]
[1727259321606,0.22028799,63695.0,63694.0,0.002]
[1727259322708,0.29878299,63695.0,63694.0,0.002]
[1727259323306,0.22028799,63695.0,63694.0,0.002]
[1727259324212,0.18581108,63695.0,63694.0,0.002]
[1727259324613,0.0919113,63695.0,63694.0,0.002]
[1727259325005,0.1704063,63695.0,63694.0,0.002]
[1727259325206,0.18581108,63695.0,63694.0,0.002]